Cogmind - Beta 15 @@@ ROGUE MODE // 2025.06.05 @ 09:10:59 Player: Fleshy Vegetable Bird Result: Destroyed by S-27 Virus with Autogun Performance ------------- Evolutions (6) 3000 Regions Visited (10) 2000 Robots Destroyed (90) 450 Value Destroyed (2663) 2663 Prototype IDs (18) 360 Alien Tech Used (0) 0 Bonus (913) 913 TOTAL SCORE: 9386 Bonus ------- Follower Combat Kills 113 Registered with UFD 300 Met Optimus in HQ 500 Cogmind --------- Core Integrity 0/1150 Matter 34/300 Energy 100/100 System Corruption 17% Temperature Cool (0) Movement Core (50) Location -4/Factory Parts ------- > --- POWER (2) -------- (None) > --- PROPULSION (5) --- (None) > --- UTILITY (9) ------ Enhanced Optical Array Advanced Signal Interpreter Advanced Terrain Scan Processor Hacking Suite > --- WEAPON (3) ------- (None) > --- INVENTORY (5) ---- Machine Analyzer Graphene Brace Improved Plasma Cutter Force Lance DRS Beacon (Ready) Peak State ------------ > --- POWER ------------ Light Antimatter Reactor > --- PROPULSION ------- Gravmag Array Gravmag Array > --- UTILITY ---------- Gravity Neutralizer Advanced Sensor Array Advanced Terrain Scan Processor Improved Melee Analysis Suite Advanced Melee Analysis Suite Improved Reaction Control System Improved Thermal Defense Suite Hacking Suite Improved Hacking Suite > --- WEAPON ----------- Cooled Plasma Rifle Railgun Mini Smartbomb Launcher > --- INVENTORY -------- Armored Wheel Graphene Brace Enhanced Hardcell Cannon Improved Plasma Cutter DRS Beacon [Rating: 95] Favorites ----------- Power Subdweller Power Source Engine Subdweller Power Source Power Core Fission Core Reactor Light Antimatter Reactor Propulsion Wheel Treads Spiked Treads Wheel Wheel Hover Unit Improved Hover Unit Utility Large Storage Unit Device Gravity Neutralizer Storage Large Storage Unit Processor Improved Terrain Scan Processor Hackware Improved Hacking Suite Protection Makeshift Light Armor Plating Weapon Subdweller Laser Energy Gun Subdweller Laser Energy Cannon Phase Cannon Ballistic Gun Assault Rifle Ballistic Cannon Antimatter Cannon Launcher Subdweller Shrapnel Launcher Special Weapon Mining Laser Slashing Weapon Power Sword Piercing Weapon Spear Build | -11 -10 -10 -8 -6 -5 -5 -5 -4 -4 -4 ------- Run | Yrd Mat Sub Scr Fac Fac Was Fac Fac Was Fac Slots Evolved 12 | . . . . 8 2 . . 2 . . Power 1 | . . . . 1 . . . . . . Propulsion 3 | . . . . 3 . . . . . . Utility 7 | . . . . 3 2 . . 2 . . Weapon 1 | . . . . 1 . . . . . . Parts Attached 119 | 10 13 17 6 50 5 2 9 4 . 3 Power 15 | 1 . 3 . 8 . . 2 1 . . Engine 9 | 1 . 2 . 5 . . 1 . . . Core 5 | . . 1 . 3 . . 1 . . . Reactor 1 | . . . . . . . . 1 . . Propulsion 32 | 4 3 6 2 13 2 . 2 . . . Treads 3 | . . 1 . 2 . . . . . . Leg . | . . . . . . . . . . . Wheel 20 | 4 3 5 2 5 . . 1 . . . Hover 9 | . . . . 6 2 . 1 . . . Flight . | . . . . . . . . . . . Utility 36 | 2 3 2 2 16 3 2 2 2 . 2 Device 11 | 1 1 . . 4 1 1 2 1 . . Storage 5 | 1 2 1 . 1 . . . . . . Processor 9 | . . . . 5 2 . . . . 2 Hackware 3 | . . . . 2 . . . 1 . . Protection 8 | . . 1 2 4 . 1 . . . . Artifact . | . . . . . . . . . . . Weapon 36 | 3 7 6 2 13 . . 3 1 . 1 Energy Gun 11 | 3 1 1 . 4 . . 2 . . . Energy Cannon 2 | . 1 . 1 . . . . . . . Ballistic Gun 5 | . 2 1 . 1 . . . 1 . . Ballistic Cannon 3 | . . 2 . 1 . . . . . . Launcher 7 | . 2 2 1 1 . . 1 . . . Special Weapon 1 | . 1 . . . . . . . . . Impact Weapon . | . . . . . . . . . . . Slashing Weapon 5 | . . . . 5 . . . . . . Piercing Weapon 2 | . . . . 1 . . . . . 1 Special Melee Weapon . | . . . . . . . . . . . Unidentified Prototypes 10 | . . . . 6 . 1 3 . . . Parts Lost 45 | . 1 5 . 19 . 4 3 4 1 8 Power 8 | . . 2 . 3 . . 1 1 . 1 Propulsion 17 | . 1 2 . 9 . 2 1 . . 2 Utility 13 | . . . . 6 . 1 . 1 . 5 Weapon 7 | . . 1 . 1 . 1 1 2 1 . Highest Loss Streak 9 | . 1 1 . 9 . 4 3 3 1 7 To Critical Strikes . | . . . . . . . . . . . Average Backups 11 | 3 9 14 11 15 18 13 3 3 4 4 Power . | . 1 . . . . . . . . . Propulsion 3 | 1 2 3 3 5 1 1 . . . . Utility 4 | . 1 3 4 6 8 5 . . 2 2 Weapon 3 | . 4 7 3 2 5 4 1 1 1 1 Tool/Special . | . . . . . . . . . . . Unused Backups 54 | . 1 4 17 13 . 12 1 1 . 5 Power 3 | . 1 . 1 1 . . . . . . Propulsion 11 | . . . 4 3 . 2 1 1 . . Utility 23 | . . 2 7 6 . 5 . . . 3 Weapon 15 | . . 2 5 3 . 4 . . . 1 Tool/Special 2 | . . . . . . 1 . . . 1 Average Slot Usage (%) 90 | . 99 95 100 84 91 84 79 73 55 38 Engine 9 | . 14 10 14 5 . . 2 . . . Core 1 | . . . . 2 11 9 8 . . . Treads 5 | . . . 8 7 . . . . . . Wheel 15 | . 27 27 19 9 . . 1 . . . Hover 3 | . . . . 6 23 20 13 10 10 5 Device 4 | . 14 3 . 2 4 7 16 19 15 8 Storage 9 | . 14 14 14 6 5 3 . . . . Processor 5 | . . . . 9 20 17 17 14 10 12 Hackware 2 | . . . . 6 5 5 5 9 10 9 Protection 7 | . . 10 14 5 . 3 . . . . Energy Gun 5 | . 5 . 9 4 . . 7 4 . . Energy Cannon 2 | . . 8 4 . . . . . . . Ballistic Gun 2 | . 6 5 2 . . . . 3 3 . Ballistic Cannon 1 | . . 6 . 1 5 3 . . . . Launcher 6 | . 14 5 11 . . . 2 4 . . Slashing Weapon 3 | . . . . 11 11 9 . . . . Peak Build Rating 95 | 7 9 17 26 65 81 85 91 95 71 69 Average Rating 34 | 5 8 12 19 52 78 70 77 89 68 42 On Entrance 41 | . 7 9 17 25 59 81 49 77 71 64 Naked Turns . | . . . . . . . . . . . Heaviest Build 81 | 14 33 37 45 81 67 70 44 36 25 19 Greatest Support 59 | 32 20 40 40 50 55 55 59 52 40 40 Greatest Overweight (x) 6 | 3 2 3 3 6 1 1 . . . . Average Overweight (x) 1 | . . . 2 2 1 . . . . . Largest Inventory Capacity 20 | 8 15 15 15 20 20 20 5 5 5 5 Average Capacity 14 | 7 13 15 15 19 20 14 5 5 5 5 Most Carried 20 | 7 14 15 15 20 20 20 5 5 5 5 Average Carried 12 | 3 9 14 11 17 19 13 4 4 5 4 Final Capacity 20 | 8 15 15 15 20 20 5 5 5 5 5 Final Carried 20 | 7 14 15 15 19 20 4 4 5 5 5 Class Distribution -------------------- 63% | Mutant 17% | Scavenger-Mutant 7% | Gladiator 4% | Hacker-Mutant 3% | Tank Dominant Class ---------------- Mutant | -10/Materials Mutant | -10/Subcaves Mutant | -8/Scraptown Mutant | -6/Factory Gladiator | -5/Factory Gladiator | -5/Waste Tank | -5/Factory Hacker-Tank | -4/Factory Hacker-Mutant | -4/Waste Hacker-Mutant | -4/Factory Resources | -11 -10 -10 -8 -6 -5 -5 -5 -4 -4 -4 ----------- Run | Yrd Mat Sub Scr Fac Fac Was Fac Fac Was Fac Matter Collected 2247 | 207 375 483 144 660 133 . 245 . . . Remotely . | . . . . . . . . . . . Salvage Created 3535 | 162 561 323 . 2004 126 . 339 . . 20 Parts 185 | 18 31 30 . 90 3 . 11 . . 2 Haulers Intercepted 4 | . 2 . . 1 . . 1 . . . Recyclers Shooed . | . . . . . . . . . . . Parts Field Recycled . | . . . . . . . . . . . Retrieved Matter . | . . . . . . . . . . . Parts Self-Destructed 9 | . . 9 . . . . . . . . Prevented . | . . . . . . . . . . . Kills | -11 -10 -10 -8 -6 -5 -5 -5 -4 -4 -4 ------- Run | Yrd Mat Sub Scr Fac Fac Was Fac Fac Was Fac Combat Hostiles Destroyed 53 | . 8 14 . 24 . . 6 . . 1 Melee 15 | . . . . 14 . . . . . 1 Guns 13 | . 4 1 . 8 . . . . . . Cannons 8 | . . 6 . 2 . . . . . . AOE 17 | . 4 7 . . . . 6 . . . Classes Destroyed 13 | 3 4 2 . 4 . . . . . . Worker 13 | 2 1 . . 7 1 . 2 . . . Tunneler 7 | 5 1 . . 1 . . . . . . Hauler 4 | . 2 . . 1 . . 1 . . . Recycler 6 | 1 . . . 4 1 . . . . . Operator 3 | . 1 . . 2 . . . . . . Watcher 4 | . 2 . . 2 . . . . . . Swarmer 8 | . . 3 . 4 . . . . . 1 Grunt 26 | . 8 . . 12 . . 6 . . . Duelist 1 | . . . . 1 . . . . . . Sentry 1 | . . . . 1 . . . . . . Demolisher 2 | . . . . 2 . . . . . . Programmer 4 | . . . . 4 . . . . . . Subdweller 11 | . . 11 . . . . . . . . Best Kill Streak 6 | 6 5 3 . 5 2 . 4 . . 1 Combat Bots Only 4 | . 4 3 . 3 . . 3 . . 1 Max Kills in Single Turn 2 | 1 2 2 . 2 1 . 2 . . 1 Gunslinging 1 | . . . . 1 . . . . . . Exploded 2 | . 2 2 . . . . 2 . . . Melee 1 | . . . . 1 . . . . . 1 Uniques/NPCs Destroyed . | . . . . . . . . . . . Combat | -11 -10 -10 -8 -6 -5 -5 -5 -4 -4 -4 -------- Run | Yrd Mat Sub Scr Fac Fac Was Fac Fac Was Fac Hostile Shots Fired 608 | . 34 45 3 246 3 3 81 41 1 151 Missed 231 | . 11 17 . 86 3 . 27 19 . 68 Hits 377 | . 23 28 3 160 . 3 54 22 1 83 Melee 13 | . . . . 9 . 3 . . 1 . Projectile 364 | . 23 28 3 151 . . 54 22 . 83 AOE 9 | . . 2 . 7 . . . . . . Critical Strikes 18 | . 3 1 . 10 . 1 3 . . . Part Disruptions 1 | . . . . 1 . . . . . . Damage Taken 6734 | . 370 693 37 2881 . 140 837 401 39 1336 Core 1864 | . 65 151 . 366 . . 126 80 . 1076 Absorbed by Shields . | . . . . . . . . . . . Redirected to Shielding 3 | . . . . 3 . . . . . . Ignored by Resistances 354 | . . . . 102 . . 252 . . . Core Remaining (%) 64 | 100 . . 13 56 . . 87 . . . Volleys Fired 164 | 13 45 38 1 24 8 4 30 1 . . Largest 3 | 2 2 2 1 3 1 1 1 1 . . Hottest 240 | 90 100 100 85 240 33 33 81 24 . . Shots Fired 277 | 26 85 73 1 50 8 3 30 1 . . Gun 158 | 26 67 11 . 33 . . 20 1 . . Cannon 82 | . 3 50 1 17 8 3 . . . . Launcher 35 | . 13 12 . . . . 10 . . . Special 2 | . 2 . . . . . . . . . Kinetic 89 | . 25 36 . 17 8 3 . . . . Thermal 153 | 26 47 25 1 33 . . 20 1 . . Explosive 28 | . 6 12 . . . . 10 . . . Electromagnetic 7 | . 7 . . . . . . . . . Robot Hit Streak 13 | 8 11 10 . 13 4 2 10 . . . Robot Miss Streak 4 | 2 4 3 1 3 . 1 4 . . . Penetration Max . | . . . . . . . . . . . Secondary Targets 3 | . 1 . . 2 . . . . . . Max Gunslinging Chain 1 | . 1 . . 1 . . . . . . Shots Hit Robots 231 | 14 47 41 . 109 2 2 15 . . 1 Core Hits 155 | 9 29 27 . 50 2 1 35 . . 2 Critical Kills 1 | . . . . 1 . . . . . . Critical Parts Destroyed . | . . . . . . . . . . . Critical Strikes 15 | . . 1 . 14 . . . . . . Destroy 2 | . . 1 . 1 . . . . . . Sever 12 | . . . . 12 . . . . . . Impale 1 | . . . . 1 . . . . . . Melee Attacks 133 | . . . . 129 . . . . . 4 Impact . | . . . . . . . . . . . Slashing 123 | . . . . 123 . . . . . . Piercing 10 | . . . . 6 . . . . . 4 Sneak Attacks 19 | . . . . 19 . . . . . . Combat Hostiles . | . . . . . . . . . . . Follow-up Attacks 26 | . . . . 26 . . . . . . Damage Inflicted 9117 | 164 894 1223 . 4529 81 83 2080 . . 63 Guns 1733 | 164 515 120 . 596 . . 338 . . . Cannons 941 | . 17 559 . 201 81 83 . . . . Explosions 2648 | . 362 544 . . . . 1742 . . . Melee 3755 | . . . . 3732 . . . . . 23 Ramming 40 | . . . . . . . . . . 40 Kinetic 966 | . 173 467 . 162 81 83 . . . . Thermal 1749 | 164 400 212 . 635 . . 338 . . . Explosive 2291 | . 155 544 . . . . 1592 . . . Electromagnetic 316 | . 166 . . . . . 150 . . . Impact . | . . . . . . . . . . . Slashing 3575 | . . . . 3575 . . . . . . Piercing 180 | . . . . 157 . . . . . 23 Highest Corruption 17 | . . . . 2 . 8 8 . 17 17 Average Corruption 6 | . . . . 1 . 8 8 . 10 17 Corruption Purged . | . . . . . . . . . . . Corruption Blocked . | . . . . . . . . . . . Effects 43 | . . . . 11 . 4 10 . 3 15 Message Errors 10 | . . . . . . 3 3 . 2 2 Matter Fused 11 | . . . . 6 . . 2 . . 3 Heat Flow Errors 2 | . . . . . . . 1 . . 1 Data Loss (minor) 8 | . . . . 2 . . 1 . 1 4 Data Loss (major) 1 | . . . . . . . 1 . . . Misfires 3 | . . . . 2 . . 1 . . . Misdirections 5 | . . . . . . . . . . 5 Weapon Failures 3 | . . . . 1 . 1 1 . . . Overload Shots . | . . . . . . . . . . . Overflow Damage 533 | . . . . 529 . . 4 . . . Projectiles . | . . . . . . . . . . . Explosions 4 | . . . . . . . 4 . . . Melee 529 | . . . . 529 . . . . . . Knockbacks 6 | . . 3 . 2 . . . . . 1 Impact 1 | . . . . . . . . . . 1 Kinetic 4 | . . 3 . 1 . . . . . . Secondary 1 | . . . . 1 . . . . . . Self-Inflicted Damage 84 | . 46 2 . . . . 17 . . 19 Shots 5 | . 3 1 . . . . 1 . . . Rammed 7 | . . . . . . . . . . 7 Targets Rammed 7 | . . . . . . . . . . 7 Kicked . | . . . . . . . . . . . Crushed . | . . . . . . . . . . . Highest Temperature 450 | 150 293 . 34 450 . 18 360 . . 238 Average Temperature 103 | 62 80 . 25 126 . 9 127 . . 130 Received Heat Transfer 1833 | . 237 33 12 963 . . 504 66 . 18 Effects 7 | . 1 . . 4 . . 2 . . . Interference 6 | . 1 . . 4 . . 1 . . . Damage (minor) 1 | . . . . . . . 1 . . . Siege Activations . | . . . . . . . . . . . Martial Activations . | . . . . . . . . . . . Shielding Activations . | . . . . . . . . . . . Robots Disrupted . | . . . . . . . . . . . Combat Hostiles . | . . . . . . . . . . . Robots Corrupted . | . . . . . . . . . . . Combat Hostiles . | . . . . . . . . . . . Parts Fried . | . . . . . . . . . . . Impact Corruptions . | . . . . . . . . . . . Robots Melted . | . . . . . . . . . . . Combat Hostiles . | . . . . . . . . . . . Parts Melted 5 | . 1 . . 4 . . . . . . Heat Transferred 3387 | 458 1042 444 . 925 . . 518 . . . Parts Sabotaged . | . . . . . . . . . . . Parts Stolen . | . . . . . . . . . . . Parts Stripped . | . . . . . . . . . . . Power Chain Reactions 1 | . 1 . . . . . . . . . Alert | -11 -10 -10 -8 -6 -5 -5 -5 -4 -4 -4 ------- Run | Yrd Mat Sub Scr Fac Fac Was Fac Fac Was Fac Maximum Alert Level 2 | . . . . 2 1 . 2 1 . . Low Security (%) 76 | 100 100 . . 60 49 100 77 93 100 100 Level 1 12 | . . . . 17 50 . 19 6 . . Level 2 10 | . . . . 22 . . 2 . . . Level 3 . | . . . . . . . . . . . Level 4 . | . . . . . . . . . . . Level 5 . | . . . . . . . . . . . High Security . | . . . . . . . . . . . Max Security . | . . . . . . . . . . . Peak Influence 534 | 20 135 . . 534 250 54 424 202 40 30 Initial 250 | . . . . . 250 54 . 202 40 . Average 122 | 5 30 . . 185 202 26 86 151 12 6 Influence Increases 2578 | 40 334 70 . 1326 37 2 563 105 . 101 Destroy 0b10 Robot/C 900 | . 160 60 . 540 . . 120 . . 20 Destroy 0b10 Robot/NC 185 | 40 35 . . 85 10 . 15 . . . Destroy Leader 236 | . 58 10 . 136 . . 22 . . 10 Allied During Kill 13 | . . . . 13 . . . . . . Successful Hack 172 | . 24 . . 60 . . 32 30 . 26 Disable Machine 135 | . . . . 45 . . 90 . . . Destroy Structure 217 | . 42 . . 27 12 2 134 . . . Partial Spotted 15 | . . . . . . . . . . 15 Lose Combat Pursuer 705 | . 15 . . 420 15 . 150 75 . 30 Influence Decreases 2578 | 40 334 70 . 814 392 159 149 402 117 101 Entered New Map 654 | . . . . . 262 103 . 212 77 . Time Decay 1543 | 40 324 50 . 614 130 30 99 150 40 66 Lost Part 330 | . 10 20 . 180 . 20 30 40 . 30 Lost Ally 46 | . . . . 20 . 6 20 . . . Purge Threat 5 | . . . . . . . . . . 5 Squads Dispatched 31 | . 2 . . 15 2 . 7 3 . 2 Investigation 9 | . . . . 4 . . 4 1 . . Extermination 5 | . . . . 4 . . . 1 . . Reinforcement 14 | . 2 . . 4 2 . 3 1 . 2 Assault . | . . . . . . . . . . . Garrison 3 | . . . . 3 . . . . . . Intercept . | . . . . . . . . . . . Searches Triggered . | . . . . . . . . . . . Construction Impeded 2 | . . . . 1 . . 1 . . . Haulers Reinforced 3 | . . . . 1 . . 2 . . . Active Scanning Responses . | . . . . . . . . . . . Cargo Convoy Interrupts . | . . . . . . . . . . . Stealth | -11 -10 -10 -8 -6 -5 -5 -5 -4 -4 -4 --------- Run | Yrd Mat Sub Scr Fac Fac Was Fac Fac Was Fac Distress Signals 10 | . 3 . . 3 . . 2 2 . . Communications Jammed . | . . . . . . . . . . . Distress Signals . | . . . . . . . . . . . Times Spotted 180 | . 18 14 4 68 5 6 28 15 6 16 Peak Tracking Total 19 | . 5 3 4 9 3 6 19 10 6 11 Tactical Retreats 31 | . 1 . . 17 1 1 5 5 . 1 Traps | -11 -10 -10 -8 -6 -5 -5 -5 -4 -4 -4 ------- Run | Yrd Mat Sub Scr Fac Fac Was Fac Fac Was Fac Traps Triggered 6 | . . . . 3 1 . . 1 . 1 Indirectly . | . . . . . . . . . . . Trap Hack Attempts . | . . . . . . . . . . . Triggered . | . . . . . . . . . . . Disarmed . | . . . . . . . . . . . Reprogrammed . | . . . . . . . . . . . Reused . | . . . . . . . . . . . Traps Extracted . | . . . . . . . . . . . Installed . | . . . . . . . . . . . Triggered . | . . . . . . . . . . . Machines | -11 -10 -10 -8 -6 -5 -5 -5 -4 -4 -4 ---------- Run | Yrd Mat Sub Scr Fac Fac Was Fac Fac Was Fac Machines Disabled 10 | . . . 1 3 . . 6 . . . Max in Single Turn 4 | . . . 1 1 . . 4 . . . Garrison Access 3 | . . . . 2 . . . . . 1 Machines Repaired . | . . . . . . . . . . . Machines Dismantled . | . . . . . . . . . . . Machines Sabotaged . | . . . . . . . . . . . Overloaded Fab Kills . | . . . . . . . . . . . Hacking | -11 -10 -10 -8 -6 -5 -5 -5 -4 -4 -4 --------- Run | Yrd Mat Sub Scr Fac Fac Was Fac Fac Was Fac Machines Accessed 46 | . 5 2 6 17 . . 6 6 . 4 Terminals 21 | . 5 . . 7 . . 2 4 . 3 Fabricators 4 | . . . . 3 . . . 1 . . Repair Stations . | . . . . . . . . . . . Recycling Units 8 | . . . . 3 . . 4 1 . . Scanalyzers 2 | . . . . 2 . . . . . . Garrison Access 3 | . . . . 2 . . . . . 1 Total Hacks 144 | . 19 2 42 37 . . 14 14 . 16 Successful 105 | . 10 2 42 20 . . 8 11 . 12 Failed 39 | . 9 . . 17 . . 6 3 . 4 Catastrophic 1 | . . . . 1 . . . . . . Database Lockouts . | . . . . . . . . . . . Manual 85 | . 22 . . 27 . . 13 11 . 12 Terminals 70 | . 19 . . 19 . . 6 12 . 14 Fabricators 9 | . . . . 8 . . . 1 . . Repair Stations . | . . . . . . . . . . . Recycling Units 12 | . . . . 3 . . 8 1 . . Scanalyzers 5 | . . . . 5 . . . . . . Garrison Access 4 | . . . . 2 . . . . . 2 Terminal Hacks 57 | . 3 2 42 3 . . 1 2 . 4 Record 43 | . . . 42 . . . . 1 . . Part Schematic 1 | . 1 . . . . . . . . . Robot Analysis 2 | . 2 . . . . . . . . . Prototype ID Bank 1 | . . . . 1 . . . . . . Open Door 1 | . . 1 . . . . . . . . Level Access Points 1 | . . . . 1 . . . . . . Branch Access Points 1 | . . . . . . . 1 . . . Terminal Index 2 | . . . . 1 . . . . . 1 Recycling Unit Index 1 | . . . . . . . . . . 1 Unreport Threat 1 | . . . . . . . . . . 1 Dispatch Records 2 | . . . . . . . . 1 . 1 Release Object 1 | . . 1 . . . . . . . . Fabricator Hacks . | . . . . . . . . . . . Repair Station Hacks . | . . . . . . . . . . . Recycling Unit Hacks . | . . . . . . . . . . . Scanalyzer 4 | . . . . 4 . . . . . . Insert Component 3 | . . . . 3 . . . . . . Analyze 1 | . . . . 1 . . . . . . Garrison Access Hacks 3 | . . . . 2 . . . . . 1 Seal Access 3 | . . . . 2 . . . . . 1 Unauthorized Hacks 41 | . 7 . . 11 . . 7 9 . 7 Terminals 30 | . 7 . . 6 . . 3 7 . 7 Track 7 | . 2 . . 1 . . 1 2 . 1 Assimilate 3 | . 1 . . . . . . . . 2 Botnet 17 | . 4 . . 4 . . 2 4 . 3 Disrupt 2 | . . . . 1 . . . 1 . . Operators 1 | . . . . . . . . . . 1 Fabricators 3 | . . . . 2 . . . 1 . . Fabnet 3 | . . . . 2 . . . 1 . . Repair Stations . | . . . . . . . . . . . Recycling Units 8 | . . . . 3 . . 4 1 . . Fedlink 8 | . . . . 3 . . 4 1 . . Scanalyzers . | . . . . . . . . . . . Garrison Access . | . . . . . . . . . . . Data Cores Recovered . | . . . . . . . . . . . Used . | . . . . . . . . . . . Hacking Detections 26 | . 4 . . 12 . . 4 4 . 2 Full Trace Events . | . . . . . . . . . . . Feedback Events . | . . . . . . . . . . . Feedback Blocked . | . . . . . . . . . . . Robot Schematics Acquired . | . . . . . . . . . . . Robots Built . | . . . . . . . . . . . Authchips . | . . . . . . . . . . . Time . | . . . . . . . . . . . Total Robot Build Rating . | . . . . . . . . . . . Part Schematics Acquired 2 | . 1 . . 1 . . . . . . Parts Built . | . . . . . . . . . . . Authchips . | . . . . . . . . . . . Time . | . . . . . . . . . . . Total Part Build Rating . | . . . . . . . . . . . Parts Repaired . | . . . . . . . . . . . Time . | . . . . . . . . . . . Parts Recycled . | . . . . . . . . . . . Recycled Matter . | . . . . . . . . . . . Retrieved Matter . | . . . . . . . . . . . Retrieved Components . | . . . . . . . . . . . Parts Scanalyzed 2 | . . . . 2 . . . . . . Part Schematics Acquired 1 | . . . . 1 . . . . . . Parts Damaged 1 | . . . . 1 . . . . . . Bothacking | -11 -10 -10 -8 -6 -5 -5 -5 -4 -4 -4 ------------ Run | Yrd Mat Sub Scr Fac Fac Was Fac Fac Was Fac Used RIF Installer . | . . . . . . . . . . . Robots Hacked 2 | . . . . . 1 . 1 . . . Non-combat . | . . . . . . . . . . . Combat 2 | . . . . . 1 . 1 . . . Robot Hacks Applied . | . . . . . . . . . . . Relay Couplers Released . | . . . . . . . . . . . Fabnet Peak Effective % 6 | . . . . . 6 6 6 2 2 2 Autooverrided 2 | . . . . . 1 . 1 . . . Robots Rewired . | . . . . . . . . . . . Allies Hacked . | . . . . . . . . . . . Hacks Repelled . | . . . . . . . . . . . Allies | -11 -10 -10 -8 -6 -5 -5 -5 -4 -4 -4 -------- Run | Yrd Mat Sub Scr Fac Fac Was Fac Fac Was Fac Total Allies 5 | . 1 . 1 . 1 1 1 . . . Largest Group 1 | . 1 1 1 1 1 1 1 . . . Highest-Rated Group 44 | . 10 10 44 44 41 31 29 . . . Highest-Rated Ally 44 | . 10 10 44 44 41 31 29 . . . Total Orders . | . . . . . . . . . . . Ally Attacks 22 | . . . 2 11 1 4 4 . . . Total Damage 490 | . . . 78 250 38 65 59 . . . Kills 4 | . . . 1 3 . . . . . . Allies Corrupted . | . . . . . . . . . . . Allies Melted . | . . . . . . . . . . . Intel | -11 -10 -10 -8 -6 -5 -5 -5 -4 -4 -4 ------- Run | Yrd Mat Sub Scr Fac Fac Was Fac Fac Was Fac Active Infowar (turns) 3229 | . 1088 179 . 796 179 5 275 305 154 248 Optics 420 | . . . . 21 179 5 . . . 215 Sensors 846 | . . . . . . . 275 305 154 112 Terrain 419 | . . . . 419 . . . . . . Seismic 1267 | . 1088 179 . . . . . . . . Machine Analysis 356 | . . . . 356 . . . . . . Robot Analysis Total 2 | . 2 . . . . . . . . . Derelict Logs Recovered 5 | . . . 5 . . . . . . . Drone Launches . | . . . . . . . . . . . Drone Recoveries . | . . . . . . . . . . . Exploration | -11 -10 -10 -8 -6 -5 -5 -5 -4 -4 -4 ------------- Run | Yrd Mat Sub Scr Fac Fac Was Fac Fac Was Fac Turns Passed 9004 | 125 1101 795 3189 2403 279 113 292 305 154 248 Spaces Moved 6225 | 71 618 604 1880 1351 238 123 349 370 206 415 Core 239 | 13 . . . . . . . . . 226 Treads 305 | . . . 279 26 . . . . . . Legs . | . . . . . . . . . . . Wheels 3856 | 58 618 604 1601 975 . . . . . . Hover 1825 | . . . . 350 238 123 349 370 206 189 Flight . | . . . . . . . . . . . Fastest Speed 48 | 50 80 95 110 95 105 48 52 56 56 50 Average Speed 116 | 88 91 98 163 137 105 76 54 56 56 52 Slowest Speed 460 | 200 110 125 360 460 105 105 61 60 56 60 Overloaded Moves . | . . . . . . . . . . . Propulsion Burnouts . | . . . . . . . . . . . Robots Hopped . | . . . . . . . . . . . Potential Cave-ins 2 | . . . . . . . 2 . . . Cave-ins Triggered . | . . . . . . . . . . . Exploration Rate (%) 43 | 3 91 32 92 38 8 79 13 15 92 11 Regions Visited 10 Branch Regions 2 Pre-discovered Areas 1 | . . . . 1 . . . . . . Known Exits Taken 1 | . . . . 1 . . . . . . Unknown Exits Taken 5 | 1 1 1 1 . . . 1 . . . Scrap Searched 12 | . . 8 4 . . . . . . . Spaces Dug 55 | . 2 9 . 21 6 . 17 . . . Terrain Destroyed 231 | . 53 71 . 26 6 1 74 . . . Melee 16 | . . . . 16 . . . . . . Projectile 20 | . 2 1 . 10 6 1 . . . . AOE 195 | . 51 70 . . . . 74 . . . Terrain Rammed . | . . . . . . . . . . . Walls Destroyed . | . . . . . . . . . . . Machines Disabled . | . . . . . . . . . . . Actions | -11 -10 -10 -8 -6 -5 -5 -5 -4 -4 -4 --------- Run | Yrd Mat Sub Scr Fac Fac Was Fac Fac Was Fac Total 7537 | 103 1063 729 2001 1680 262 137 417 465 244 436 Wait 676 | 1 363 26 53 90 . 3 15 86 39 . Move 6217 | 70 617 603 1879 1350 238 122 348 370 205 415 Hop . | . . . . . . . . . . . Pick Up 108 | 7 12 19 29 25 6 2 4 2 . 2 Fast Attach 61 | 9 . 5 2 29 1 1 8 4 . 2 Attach 30 | . 1 4 1 16 3 3 1 . . 1 Detach 4 | . . . . 2 1 . . . . 1 Swap 65 | 1 15 16 5 22 2 . 4 . . . Drop 103 | 2 10 18 31 26 3 2 7 2 . 2 Fire 164 | 13 45 38 1 24 8 4 30 1 . . Melee 100 | . . . . 96 . . . . . 4 Ram 9 | . . . . . . . . . . 9 Kick . | . . . . . . . . . . . Crush . | . . . . . . . . . . . Escape Stasis . | . . . . . . . . . . . Rewire . | . . . . . . . . . . . Trap . | . . . . . . . . . . . Miscellaneous . | . . . . . . . . . . . Route ------- -11/Scrapyard -10/Materials (discovered 4 exits: [*Mat x2] / [*Min] / *Sub) -10/Subcaves (discovered 2 exits: [*Mat] / *Scr) -8/Scraptown (discovered 2 exits: *Fac x2) -6/Factory (discovered 6 exits: *Fac x4 / *Low x2) -5/Factory -5/Waste -5/Factory (discovered 5 exits: *Fac / Upp x2 / Ext x2) -4/Factory -4/Waste -4/Factory History --------- Turn | Location | Event 33 | -11/Scrapyard | Discovered new exit (range 15) 126 | -11/Scrapyard | Entered Materials 309 | -10/Materials | Build established: Mutant 474 | -10/Materials | Discovered new exit (range 16) 908 | -10/Materials | Discovered new exit (range 10) 1070 | -10/Materials | Discovered new exit (range 8) 1200 | -10/Materials | Discovered new exit (range 9) 1227 | -10/Materials | Entered Subcaves 1227 | -10/Subcaves | Accompanied by 1 ally 1228 | -10/Subcaves | Approached by a straggling Scientist 1575 | -10/Subcaves | Disturbed a concealed Subdweller 1577 | -10/Subcaves | Disturbed a concealed Subdweller 1585 | -10/Subcaves | Core integrity fell below 50% 1607 | -10/Subcaves | Disturbed a concealed Subdweller 1632 | -10/Subcaves | A swath of the cavern ceiling suddenly collapsed 1754 | -10/Subcaves | Scientist uncovered a shortcut to Scraptown 1790 | -10/Subcaves | Discovered new exit (range 7) 1823 | -10/Subcaves | Core integrity fell below 20% 2022 | -10/Subcaves | Entered Scraptown 2176 | -8/Scraptown | Discovered new exit (range 13) 2253 | -8/Scraptown | Scanned Subdweller tech in exchange for log data 2258 | -8/Scraptown | Learned 8 Factory zone layouts 2260 | -8/Scraptown | Learned Research terminal intel 2262 | -8/Scraptown | Learned 8 Research zone layouts 2267 | -8/Scraptown | Build established: Scavenger-Mutant 2298 | -8/Scraptown | Visited Spacefarers 2346 | -8/Scraptown | Visited Cyclists 2403 | -8/Scraptown | Visited Comm Corps 2458 | -8/Scraptown | Visited SPCMW 2481 | -8/Scraptown | Visited UFD Registry 2481 | -8/Scraptown | Registered with UFD as "Fleximaster" 2551 | -8/Scraptown | Visited CR-KLE's Repair Center 2584 | -8/Scraptown | Visited Symbiants 2614 | -8/Scraptown | Visited CPS Storage 3025 | -8/Scraptown | Build established: Mutant 3641 | -8/Scraptown | Entered Cyclist Reading Room 3833 | -8/Scraptown | Visited Curators Association 3857 | -8/Scraptown | Visited Scrap Suit Storage 3864 | -8/Scraptown | Found Scrap Suit 3922 | -8/Scraptown | Visited Scrapoid Research Area 4042 | -8/Scraptown | Discovered new exit (range 5) 4116 | -8/Scraptown | Visited Supply Room 4153 | -8/Scraptown | Visited Infowarlord's Domain 4161 | -8/Scraptown | Found Exp. Terrain Scanner 4186 | -8/Scraptown | Visited Supply Room 4232 | -8/Scraptown | Visited Derelict Rescue Squad 4241 | -8/Scraptown | Found DRS Beacon 4426 | -8/Scraptown | Visited Botcube Research 4461 | -8/Scraptown | Visited Observation Area 4496 | -8/Scraptown | Visited Chapter 10 4604 | -8/Scraptown | Found Botcube 4918 | -8/Scraptown | Botcube activated 5118 | -8/Scraptown | Met Optimus 5118 | -8/Scraptown | Accepted into 0bPrime 5199 | -8/Scraptown | Civil war broke out across Scraptown 5211 | -8/Scraptown | Entered Factory 5211 | -6/Factory | Accompanied by 1 ally 5211 | -6/Factory | Evolved 8 slots: Power x1, Propulsion x3, Utility x3, Weapon x1 5212 | -6/Factory | Identified exit to Lower Caves 5344 | -6/Factory | Loaded intel: 8 recycling unit locations 5425 | -6/Factory | Found Prototype Launcher 5425 | -6/Factory | Identified Rocket Array 5654 | -6/Factory | Found Powered Armor 6342 | -6/Factory | Discovered exit to Lower Caves (range 13) 6454 | -6/Factory | Build established: Scavenger-Mutant 6790 | -6/Factory | Lost 3 parts (1n2u) 6911 | -6/Factory | Identified exit to Factory 6934 | -6/Factory | Learned location of Protoforge (-2) 6956 | -6/Factory | Assembled infested ambush trap array 6976 | -6/Factory | Garrison activated, responded to threat 7081 | -6/Factory | Lost 9 parts (1p5n2u1w) 7587 | -6/Factory | Build established: Gladiator 7614 | -6/Factory | Entered another Factory area 7614 | -5/Factory | Evolved 2 slots: Utility x2 7890 | -5/Factory | Local machine network offline 7893 | -5/Factory | Sucked down chute 7893 | -5/Factory | Entered Waste 7894 | -5/Waste | Met a frightened Derelict 7898 | -5/Waste | Found Prototype Device 7898 | -5/Waste | Identified Exp. Shield Generator 7908 | -5/Waste | EMP discharged 7911 | -5/Waste | Spotted C-40 Crusher 7953 | -5/Waste | Spotted C-40 Crusher 7963 | -5/Waste | Crushed by Compactor (1 part destroyed, 2 dropped) 7966 | -5/Waste | Crushed by Compactor (1 part destroyed, 1 dropped) 7972 | -5/Waste | Spotted C-40 Crusher 7973 | -5/Waste | Spotted C-40 Crusher 7984 | -5/Waste | Crushed by Compactor (1 part destroyed, 2 dropped) 7988 | -5/Waste | Spotted C-40 Crusher 7990 | -5/Waste | Spotted C-40 Crusher 7998 | -5/Waste | Discovered new exit (range 14) 8006 | -5/Waste | Entered Factory 8015 | -5/Factory | Lost 4 parts (2n1u1w) 8092 | -5/Factory | Loaded intel: 8 recycling unit locations 8121 | -5/Factory | Found Prototype Launcher 8121 | -5/Factory | Identified Mni. Smartbomb Launcher 8233 | -5/Factory | Identified exit to Upper Caves 8233 | -5/Factory | Identified exit to Extension 8275 | -5/Factory | Discovered new exit (range 15) 8298 | -5/Factory | Entered another Factory area 8298 | -4/Factory | Evolved 2 slots: Utility x2 8324 | -4/Factory | Lost 3 parts (1p1n1w) 8333 | -4/Factory | Loaded intel: 8 recycling unit locations 8376 | -4/Factory | Discovered new exit (range 7) 8603 | -4/Factory | Sucked down chute 8603 | -4/Factory | Entered Waste 8615 | -4/Waste | Spotted C-40 Crusher 8618 | -4/Waste | EMP discharged 8618 | -4/Waste | Spotted C-40 Crusher 8628 | -4/Waste | Lost 3 parts (1u2w) 8651 | -4/Waste | Spotted C-40 Crusher 8652 | -4/Waste | Spotted C-40 Crusher 8706 | -4/Waste | Crushed by Compactor (1 part destroyed) 8714 | -4/Waste | Spotted C-40 Crusher 8718 | -4/Waste | EMP discharged 8718 | -4/Waste | System corruption reached 10% 8724 | -4/Waste | Spotted C-40 Crusher 8749 | -4/Waste | Discovered new exit (range 12) 8757 | -4/Waste | Entered Factory 8867 | -4/Factory | Build established: Hacker-Mutant 8914 | -4/Factory | Core integrity fell below 50% 8927 | -4/Factory | Lost 7 parts (1p2n4u) 8953 | -4/Factory | Core integrity fell below 20% 9005 | -4/Factory | Destroyed by S-27 Virus with Autogun Last Messages --------------- 08950_ Penetrated by Slug. 08952_ Slug penetrates Wall. 08958_ System corrupted: Component data lost. 08961_ K-01 Serf cleans the Fusion Modulator. 08964_ Acquired Unknown Processor. 08964_ Identified Adv. Signal Interpreter. 08964_ K-01 Serf collects debris. 08965_ Imp. Hacking Suite destroyed. 08967_ K-01 Serf cleans the Fusion Modulator. 08970_ U-05 Engineer destroyed. 08970_ K-01 Serf collects debris. 08980_ System corrupted: Component data lost. 08992_ Slammed into K-01 Serf. 09002_ O-24 Administrator: "IFF HANDSHAKE FAILED. SECURING TERMINAL." 09003_ O-24 Administrator uses terminal to summon reinforcements. 09003_ ALERT: Hostiles spotted, dispatching reinforcements to Terminal F007. 09003_ O-24 Administrator locks terminal. Map ----- +----------------------------------------------------+ | ???# #?????????????????????????????????????????? | | ?### ###???????????????????????????????????????? | | ## #???????????#######?????????????????????? | | #??????????? ?????????????????????? | | #???????????? ?#????????????????????? | | #???????????? [[[ #????????????????????? | | "" #???????????? [[[ #????????????????????? | | "" #???????????? [[ #????????????????????? | | "" #????????????? #????????????????????? | | "" #????????????? #????????????????????? | | "" ##???????????? ?????????????????????? | | "" #???????????? ??????????????????????? | | ##############+######### T ??????? | | "" "" ????????? | | "" ############## ######### ????? | | "" #????????????# #???????????????????????? | | "" #????????????# #???????????????????????? | | "" +????????????# #???????????????????????? | | "" #????????????# #???????????????????????? | | ### #????????????# #???????????????????????? | | #?## ##????????????#s#???????????????????????? | | ##+##??#+#?????????????#s#???????????????????????? | | ???????????????????????#s#???????????????????????? | | ????????????????????####s######??????????????????? | | ????????????????????# #??????????????????? | | ????????????????????# @ !#??????????????????? | | ????????????????????# o #??????????????????? | | ????????????????????# """T""" #??????????????????? | | ????????????????????###########??????????????????? | | | | | | | | | | | | | | | | | | | | | | | | | | | | | | | | | | | | | | | | | | | +----------------------------------------------------+ Best States ------------- Heat Dissipation 43 Energy Generation 31 Energy Capacity 510 Matter Stores 300 Matter Capacity 300 Sight Range 22 Robot Scan Range 16 Terrain Scan Range 30 Terrain Scan Density 210 Additional Mass Support 12 Armor Coverage 625 Resistance: TH 25 Resistance: EM 25 Core Shielding 30 Evasion (%) 63 Melee Accuracy 14 Recoil Reduction 2 Offensive Hacking 22 Item Schematics ----------------- Huge Storage Unit | -10/Materials | Hacked EM Shield | -6/Factory | Scanalyzed Robot Schematics ------------------ None Fabricated ------------ Nothing Repaired ---------- Nothing Alien Tech Used ----------------- None Achievements -------------- None Challenges ------------ None Game ------ Seed CooledNovaSpear Manual? 0 Play Time 01:28:40 Cumulative 362.1 hours Start 2025.06.05 @ 07:32:53 End 2025.06.05 @ 09:10:59 Sessions 1 Manual Loads 0 Difficulty Rogue Special Mode None Game No. 404 Rogue 404 Adventurer 0 Explorer 0 Win Type - Total 6 Types 3/1/1/1/0/0/0/0/0/0 Lore% 65 Gallery% 70 Achievement% 68 Wizard Run 0 Options --------- Layout 1 ASCII 0 Keyboard 0 Movement Numpad Keybinds 0 Fullscreen 1 Font 32/SmallcapsGlow Map View 50x35 Zoom Use 0% Tactical HUD 1 Map Filters NONE Filters NONE Steam 1 RUN: d9ae16e1-fd81-494b-b050-c2c17bdb4021